Cogmind - Beta 14 @@@ ROGUE MODE // 2024.08.30 @ 11:08:38 Player: Syanka Result: Destroyed by S-10 Pest with Light Assault Rifle Performance ------------- Evolutions (0) 0 Regions Visited (2) 400 Robots Destroyed (36) 180 Value Destroyed (629) 629 Prototype IDs (0) 0 Alien Tech Used (0) 0 Bonus (0) 0 TOTAL SCORE: 1209 Bonus ------- None Cogmind --------- Core Integrity 0/250 Matter 200/300 Energy 100/100 System Corruption 1% Temperature Cool (0) Movement Hovering (400) Ox4 Location -10/Mines Parts ------- > --- POWER (1) -------- (None) > --- PROPULSION (2) --- Backup Propulsion I > --- UTILITY (2) ------ Large Storage Unit Seismic Detector > --- WEAPON (2) ------- Light Cannon Light Cannon > --- INVENTORY (15) --- Light Nuclear Core Improved Heat Sink High-capacity Storage Unit Cargo Storage Unit High-capacity Matter Pod (10) Machine Analyzer Improved Terrain Scanner Hacking Suite Tractor Beam Light Assault Rifle Light Assault Rifle Light Cannon Datajack Mining Laser Peak State ------------ > --- POWER ------------ Ion Engine > --- PROPULSION ------- Light Treads Light Treads > --- UTILITY ---------- Small Storage Unit Large Storage Unit > --- WEAPON ----------- Assault Rifle Light Assault Rifle > --- INVENTORY -------- Light Ion Engine Light Nuclear Core Improved Heat Sink High-capacity Storage Unit Machine Analyzer Improved Terrain Scanner Improved Terrain Scanner Seismic Detector Seismic Detector Tractor Beam Light Assault Rifle Mining Laser [Rating: 9] Favorites ----------- Power Light Ion Engine Engine Light Ion Engine Propulsion Light Treads Treads Light Treads Hover Unit Backup Propulsion I Utility Large Storage Unit Device Seismic Detector Storage Large Storage Unit Weapon Light Cannon Ballistic Gun Light Assault Rifle Ballistic Cannon Light Cannon Special Weapon Mining Laser Build | -11 -10 -10 ------- Run | Yrd Mat Min Slots Evolved . | . . . Power . | . . . Propulsion . | . . . Utility . | . . . Weapon . | . . . Parts Attached 34 | 9 24 1 Power 4 | 2 2 . Engine 4 | 2 2 . Core . | . . . Reactor . | . . . Propulsion 5 | 2 3 . Treads 3 | 2 1 . Leg . | . . . Wheel . | . . . Hover 2 | . 2 . Flight . | . . . Utility 10 | 3 6 1 Device 6 | 2 3 1 Storage 4 | 1 3 . Processor . | . . . Hackware . | . . . Protection . | . . . Artifact . | . . . Weapon 15 | 2 13 . Energy Gun . | . . . Energy Cannon . | . . . Ballistic Gun 6 | 2 4 . Ballistic Cannon 6 | . 6 . Launcher . | . . . Special Weapon 3 | . 3 . Impact Weapon . | . . . Slashing Weapon . | . . . Piercing Weapon . | . . . Special Melee Weapon . | . . . Unidentified Prototypes . | . . . Parts Lost 7 | . 4 3 Power 2 | . 1 1 Propulsion 3 | . 2 1 Utility 1 | . . 1 Weapon 1 | . 1 . Highest Loss Streak 3 | . 3 1 To Critical Strikes 1 | . . 1 Average Slot Usage (%) 95 | . 95 95 Engine 12 | . 12 10 Treads 15 | . 16 13 Hover 11 | . 10 14 Device 9 | . 8 13 Storage 18 | . 19 14 Ballistic Gun 11 | . 14 . Ballistic Cannon 13 | . 9 28 Special Weapon 2 | . 2 . Peak Build Rating 9 | 8 9 9 Average Rating 8 | 6 8 8 On Entrance 5 | . 8 9 Naked Turns . | . . . Heaviest Build 34 | 14 34 30 Greatest Support 40 | 40 40 20 Greatest Overweight (x) 8 | . 8 1 Average Overweight (x) . | . . 1 Largest Inventory Capacity 15 | 8 15 15 Average Capacity 14 | 7 14 15 Most Carried 15 | 7 15 15 Average Carried 13 | 3 14 14 Final Capacity 15 | 8 15 15 Final Carried 15 | 7 15 15 Class Distribution -------------------- 100% | Mutant Dominant Class ---------------- Mutant | -10/Materials Mutant | -10/Mines Resources | -11 -10 -10 ----------- Run | Yrd Mat Min Matter Collected 1064 | 329 608 127 Remotely . | . . . Salvage Created 952 | 190 664 98 Parts 84 | 18 58 8 Haulers Intercepted 2 | . 2 . Recyclers Shooed 3 | . 3 . Parts Field Recycled . | . . . Retrieved Matter . | . . . Parts Self-Destructed . | . . . Prevented . | . . . Kills | -11 -10 -10 ------- Run | Yrd Mat Min Combat Hostiles Destroyed 21 | . 17 4 Guns 10 | . 10 . Cannons 11 | . 7 4 Classes Destroyed 8 | 2 6 . Tunneler 4 | 4 . . Hauler 2 | . 2 . Recycler 3 | 1 1 1 Mechanic 1 | . 1 . Operator 4 | . 4 . Watcher 1 | . 1 . Swarmer 11 | . 9 2 Grunt 10 | . 8 2 Best Kill Streak 4 | 3 4 2 Combat Bots Only 3 | . 3 2 Max Kills in Single Turn 1 | 1 1 1 Gunslinging . | . . . Exploded . | . . . Melee . | . . . Uniques/NPCs Destroyed . | . . . Combat | -11 -10 -10 -------- Run | Yrd Mat Min Hostile Shots Fired 148 | . 101 47 Missed 37 | . 30 7 Damage Taken 1281 | . 838 443 Core 251 | . 161 90 Absorbed by Shields . | . . . Core Remaining (%) 100 | 100 . . Volleys Fired 156 | 11 124 21 Largest 2 | 2 2 2 Hottest 120 | 40 120 70 Shots Fired 290 | 22 226 42 Gun 188 | 22 166 . Cannon 90 | . 48 42 Launcher . | . . . Special 12 | . 12 . Kinetic 278 | 22 214 42 Thermal 12 | . 12 . Explosive . | . . . Electromagnetic . | . . . Robot Hit Streak 8 | 8 7 7 Robot Miss Streak 5 | 1 5 5 Penetration Max . | . . . Secondary Targets 1 | . 1 . Max Gunslinging Chain 1 | . 1 . Shots Hit Robots 156 | 15 119 22 Core Hits 65 | 8 51 6 Critical Kills . | . . . Critical Parts Destroyed . | . . . Critical Strikes 3 | . 2 1 Blast 3 | . 2 1 Melee Attacks . | . . . Impact . | . . . Slashing . | . . . Piercing . | . . . Sneak Attacks . | . . . Combat Hostiles . | . . . Follow-up Attacks . | . . . Damage Inflicted 1951 | 153 1358 440 Guns 1048 | 151 897 . Cannons 817 | . 377 440 Explosions . | . . . Melee . | . . . Ramming 38 | 2 36 . Kinetic 1865 | 151 1274 440 Thermal 48 | . 48 . Explosive . | . . . Electromagnetic . | . . . Impact . | . . . Slashing . | . . . Piercing . | . . . Highest Corruption 1 | . 1 1 Average Corruption 1 | . 1 1 Corruption Purged . | . . . Corruption Blocked . | . . . Effects 26 | . 23 3 Message Errors 3 | . 2 1 Matter Fused 7 | . 7 . Heat Flow Errors 4 | . 3 1 Energy Discharges 1 | . 1 . Parts Fused 1 | . 1 . Data Loss (minor) 4 | . 4 . Data Loss (major) 2 | . 1 1 Misfires 3 | . 3 . Weapon Failures 1 | . 1 . Overload Shots . | . . . Overflow Damage 9 | . 7 2 Projectiles 9 | . 7 2 Explosions . | . . . Melee . | . . . Knockbacks 7 | . 2 5 Impact . | . . . Kinetic 7 | . 2 5 Secondary . | . . . Self-Inflicted Damage . | . . . Shots . | . . . Rammed 11 | 1 10 . Targets Rammed 11 | 1 10 . Kicked . | . . . Crushed . | . . . Highest Temperature 261 | . 261 212 Average Temperature 55 | . 33 131 Received Heat Transfer 417 | . 216 201 Siege Activations . | . . . Robots Corrupted . | . . . Combat Hostiles . | . . . Parts Fried . | . . . Impact Corruptions . | . . . Robots Melted . | . . . Combat Hostiles . | . . . Parts Melted . | . . . Heat Transferred 100 | . 100 . Parts Sabotaged . | . . . Parts Stolen . | . . . Parts Stripped . | . . . Power Chain Reactions . | . . . Alert | -11 -10 -10 ------- Run | Yrd Mat Min Peak Influence 211 | 25 211 80 Initial 31 | . 16 31 Average 79 | 11 92 33 Maximum Alert Level 1 | . 1 . Low Security (%) 99 | 100 98 100 Level 1 . | . 1 . Level 2 . | . . . Level 3 . | . . . Level 4 . | . . . Level 5 . | . . . High Security . | . . . Max Security . | . . . Squads Dispatched 3 | . 3 . Investigation . | . . . Extermination . | . . . Reinforcement 3 | . 3 . Assault . | . . . Garrison . | . . . Intercept . | . . . Searches Triggered . | . . . Construction Impeded . | . . . Haulers Reinforced . | . . . Active Scanning Responses . | . . . Cargo Convoy Interrupts . | . . . Stealth | -11 -10 -10 --------- Run | Yrd Mat Min Distress Signals 3 | . 3 . Communications Jammed . | . . . Distress Signals . | . . . Times Spotted 60 | . 54 6 Peak Tracking Total 4 | . 4 3 Tactical Retreats 2 | . 2 . Traps | -11 -10 -10 ------- Run | Yrd Mat Min Traps Triggered 1 | . 1 . Indirectly . | . . . Trap Hack Attempts . | . . . Triggered . | . . . Disarmed . | . . . Reprogrammed . | . . . Reused . | . . . Traps Extracted . | . . . Installed . | . . . Triggered . | . . . Machines | -11 -10 -10 ---------- Run | Yrd Mat Min Machines Disabled 1 | . 1 . Max in Single Turn 1 | . 1 . Machines Repaired . | . . . Machines Dismantled . | . . . Machines Sabotaged . | . . . Overloaded Fab Kills . | . . . Hacking | -11 -10 -10 --------- Run | Yrd Mat Min Machines Accessed 6 | . 6 . Terminals 6 | . 6 . Fabricators . | . . . Repair Stations . | . . . Recycling Units . | . . . Scanalyzers . | . . . Garrison Access . | . . . Total Hacks 17 | . 17 . Successful 7 | . 7 . Failed 10 | . 10 . Catastrophic 1 | . 1 . Database Lockouts . | . . . Manual 17 | . 17 . Terminals 17 | . 17 . Fabricators . | . . . Repair Stations . | . . . Recycling Units . | . . . Scanalyzers . | . . . Garrison Access . | . . . Terminal Hacks . | . . . Fabricator Hacks . | . . . Repair Station Hacks . | . . . Recycling Unit Hacks . | . . . Scanalyzer . | . . . Garrison Access Hacks . | . . . Unauthorized Hacks 7 | . 7 . Terminals 7 | . 7 . Assimilate 1 | . 1 . Botnet 2 | . 2 . Operators 1 | . 1 . Skim 3 | . 3 . Fabricators . | . . . Repair Stations . | . . . Recycling Units . | . . . Scanalyzers . | . . . Garrison Access . | . . . Data Cores Recovered 1 | . 1 . Used . | . . . Hacking Detections 5 | . 5 . Full Trace Events . | . . . Feedback Events . | . . . Feedback Blocked . | . . . Robot Schematics Acquired . | . . . Robots Built . | . . . Authchips . | . . . Time . | . . . Total Robot Build Rating . | . . . Part Schematics Acquired . | . . . Parts Built . | . . . Authchips . | . . . Time . | . . . Total Part Build Rating . | . . . Parts Repaired . | . . . Time . | . . . Parts Recycled . | . . . Recycled Matter . | . . . Retrieved Matter . | . . . Retrieved Components . | . . . Parts Scanalyzed . | . . . Part Schematics Acquired . | . . . Parts Damaged . | . . . Bothacking | -11 -10 -10 ------------ Run | Yrd Mat Min Used RIF Installer . | . . . Robots Hacked . | . . . Non-combat . | . . . Combat . | . . . Robot Hacks Applied . | . . . Relay Couplers Released . | . . . Fabnet Peak Effective % . | . . . Robots Rewired . | . . . Allies Hacked . | . . . Hacks Repelled . | . . . Allies | -11 -10 -10 -------- Run | Yrd Mat Min Total Allies . | . . . Largest Group . | . . . Highest-Rated Group . | . . . Highest-Rated Ally . | . . . Total Orders . | . . . Ally Attacks . | . . . Total Damage . | . . . Kills . | . . . Allies Corrupted . | . . . Allies Melted . | . . . Intel | -11 -10 -10 ------- Run | Yrd Mat Min Robot Analysis Total . | . . . Derelict Logs Recovered 1 | . . 1 Drone Launches . | . . . Drone Recoveries . | . . . Exploration | -11 -10 -10 ------------- Run | Yrd Mat Min Turns Passed 3924 | 177 3090 657 Spaces Moved 1434 | 81 1114 239 Core 5 | 2 3 . Treads 1374 | 79 1056 239 Legs . | . . . Wheels . | . . . Hover 55 | . 55 . Flight . | . . . Fastest Speed 50 | 50 160 240 Average Speed 217 | 157 216 240 Slowest Speed 450 | 160 450 240 Overloaded Moves . | . . . Propulsion Burnouts . | . . . Robots Hopped . | . . . Cave-ins Triggered . | . . . Exploration Rate (%) 54 | 5 95 63 Regions Visited 2 Branch Regions 1 Pre-discovered Areas . | . . . Known Exits Taken . | . . . Unknown Exits Taken 2 | 1 1 . Scrap Searched . | . . . Spaces Dug 1 | . 1 . Terrain Destroyed 2 | . 2 . Melee . | . . . Projectile 2 | . 2 . AOE . | . . . Terrain Rammed . | . . . Walls Destroyed . | . . . Machines Disabled . | . . . Actions | -11 -10 -10 --------- Run | Yrd Mat Min Total 1939 | 106 1553 280 Wait 280 | . 262 18 Move 1432 | 80 1113 239 Hop . | . . . Pick Up 17 | 5 11 1 Fast Attach 14 | 7 7 . Attach 2 | . 1 1 Detach . | . . . Swap 18 | 2 16 . Drop 9 | . 9 . Fire 156 | 11 124 21 Melee . | . . . Ram . | . . . Kick . | . . . Crush 11 | 1 10 . Escape Stasis . | . . . Rewire . | . . . Trap . | . . . Miscellaneous . | . . . Route ------- -11/Scrapyard -10/Materials (discovered 5 exits: [*Mat x3] / [*Min x2]) -10/Mines (discovered 1 exit: [*Mat]) History --------- Turn | Location | Event 10 | -11/Scrapyard | Discovered new exit (range 15) 178 | -11/Scrapyard | Entered Materials 312 | -10/Materials | Build established: Mutant 346 | -10/Materials | Discovered new exit (range 9) 768 | -10/Materials | Discovered new exit (range 11) 1174 | -10/Materials | Discovered new exit (range 12) 1260 | -10/Materials | Lost 3 parts (1p1n1w) 1650 | -10/Materials | Discovered new exit (range 16) 2025 | -10/Materials | Core integrity fell below 50% 2083 | -10/Materials | Discovered new exit (range 16) 3268 | -10/Materials | Entered Mines 3316 | -10/Mines | Learned Materials stockpile data 3482 | -10/Mines | Discovered new exit (range 6) 3765 | -10/Mines | Core integrity fell below 20% 3925 | -10/Mines | Destroyed by S-10 Pest with Light Assault Rifle Last Messages --------------- 03746_ Lgt. Ion Engine destroyed. 03750_ G-34 Mercenary knocked back. 03753_ G-47 Trooper destroyed. 03765_ G-34 Mercenary knocked back. 03768_ G-34 Mercenary destroyed. 03773_ Acquired 10 matter. 03775_ Acquired 14 matter. 03780_ Acquired 9 matter. 03785_ Acquired 10 matter. 03797_ Acquired 2 matter. 03858_ Seismic Detector destroyed. 03859_ S-10 Pest Lgt. Assault Rifle blasted off. 03859_ S-10 Pest destroyed. 03866_ Acquired 7 matter. 03871_ Acquired Lgt. Assault Rifle. 03872_ Acquired 3 matter. 03913_ Critical hit (Destroy). 03913_ Lgt. Treads destroyed. 03913_ S-10 Pest destroyed. 03922_ S-10 Pest knocked back. Map ----- +----------------------------------------------------+ | ??????????????????????????????????? ?????## | | ??????????????????????????????????? ??# ????????? | | ???????????????????????????????????????#?????????? | | ?????????????????????????????????????????????????? | | ?????????????????????????????????????????????????? | | ????????????????????????????????????###????####??? | | ???????????????????????????????????? #???# #??? | | ????????????????????????????????????# #??# ##?? | | ????????????????????????????????????# #?## #?? | | ????????????????????????????????????# ### #?? | | ??????????????????????????????????### #??? | | ????????????????????????########### #???? | | ????????????????????????# = ##??? | | ???????????????????????## ####### ##?? | | ??????????????????????## #?????## ^### | | ??????????????????????# #??????# ^ | | ??????????????????????# #??????## # # | | ??????????????????????+ #???????### # # | | ??????????????????????+ #?????????## # | | ??????????????????????# ##??????????## ^## | | ??????????????????????# #????????????### ^ | | ??????????????????????## ##?????????????# ##### | | ??????????????????????## ##??? ##?????# ##???? | | ??????????????????????# ## ## ## #????? | | ?????????????????###### # #????? | | ?????????? =%=s @ # #????? | | ???????????# [ s % ## #????? | | ???????????## # ####### ### ###?# #????? | | ????????????# ???# ????????# ##????##???# #????? | | ?????????????????#??????????###??????????# #????? | | ?????????????????????????????????????????# #????? | | ?????????????????????????????????????????# #????? | | ?????????????????????????????????????????# #???## | | ?????????????????????????????????????????# #?? | | ?????????????????????????????????????????# ### "" | | ?????????????????????????????????????????# "" | | ?????????????????????????????????????????# "" | | ?????????????????????????????????????????###### "" | | ??????????????????????????????????????????????? | | ???????????????????????????????????????????????### | | ?????????????????????????????????????????????????? | | ?????????????????????????????????????????????????? | | ?????????????????????????????????????????????????? | | | | | | | | | | | | | | | +----------------------------------------------------+ Best States ------------- Heat Dissipation 25 Energy Generation 10 Energy Capacity 250 Matter Stores 300 Matter Capacity 300 Sight Range 16 Terrain Scan Density 10 Evasion (%) 40 Recoil Reduction 2 Item Schematics ----------------- None Robot Schematics ------------------ None Fabricated ------------ Nothing Alien Tech Used ----------------- None Achievements -------------- None Challenges ------------ None Game ------ Seed ParticleBehemothFocus Manual? 0 Play Time 00:21:58 Cumulative 116.5 hours Start 2024.08.30 @ 10:08:51 End 2024.08.30 @ 11:08:38 Sessions 1 Manual Loads 0 Difficulty Rogue Special Mode None Game No. 75 Rogue 62 Adventurer 13 Explorer 0 Win Type - Total 1 Types 1/0/0/0/0/0/0/0/0 Lore% 42 Gallery% 56 Achievement% 46 Wizard Run 0 Options --------- Layout 2 ASCII 0 Keyboard 1 Movement Numpad Keybinds 0 Fullscreen 2 Font 16/Swanston Map View 55x47 Zoom Use 0% Tactical HUD 1 Map Filters NONE Filters NONE Steam 0 RUN: 7252452a-e7c7-4d57-ac4a-c92872c2f51b